[Event "GrandPrix_30.05"]
[Site "Chess.com"]
[Date "2020.05.30"]
[Round "4"]
[White "Novoselski"]
[Black "AliKa2810"]
[Result "1-0"]
[WhiteElo "2329"]
[BlackElo "2151"]
[TimeControl "600+2"]
[EndTime "9:53:06 PDT"]
[Termination "Novoselski won on time"]

1. d4 {[%clk 0:10:01.9]} 1... Nf6 {[%clk 0:10:00.3]} 2. c4 {[%clk 0:10:01.6]}
2... e6 {[%clk 0:10:01.4]} 3. Nc3 {[%clk 0:10:00.3]} 3... Bb4 {[%clk 0:10:00.2]}
4. Bg5 {[%clk 0:10:01.5]} 4... h6 {[%clk 0:09:53.9]} 5. Bh4 {[%clk 0:10:01.5]}
5... O-O {[%clk 0:09:53.4]} 6. e3 {[%clk 0:09:51.8]} 6... c5 {[%clk 0:09:40.7]}
7. d5 {[%clk 0:09:41.1]} 7... d6 {[%clk 0:09:31.5]} 8. Rc1 {[%clk 0:09:20.7]}
8... exd5 {[%clk 0:09:25.7]} 9. cxd5 {[%clk 0:09:19]} 9... Nbd7 {[%clk
0:09:27.2]} 10. a3 {[%clk 0:09:14.4]} 10... Ba5 {[%clk 0:09:22.4]} 11. Nf3
{[%clk 0:09:12.1]} 11... g5 {[%clk 0:09:01.3]} 12. Bg3 {[%clk 0:09:11.5]} 12...
Ne4 {[%clk 0:09:02.4]} 13. Bd3 {[%clk 0:09:03.7]} 13... Ndf6 {[%clk 0:08:57.8]}
14. O-O {[%clk 0:08:56.9]} 14... Nxc3 {[%clk 0:08:43.7]} 15. bxc3 {[%clk
0:08:56.4]} 15... Nxd5 {[%clk 0:08:44.9]} 16. Bb1 {[%clk 0:08:44.8]} 16... Be6
{[%clk 0:07:46.5]} 17. c4 {[%clk 0:08:33.5]} 17... Nf6 {[%clk 0:06:26.3]} 18.
Bxd6 {[%clk 0:08:30.3]} 18... Re8 {[%clk 0:06:26.8]} 19. Bxc5 {[%clk 0:08:10.1]}
19... Rc8 {[%clk 0:06:16.9]} 20. Qxd8 {[%clk 0:08:02.9]} 20... Bxd8 {[%clk
0:06:15.6]} 21. Bd4 {[%clk 0:07:59.7]} 21... Bxc4 {[%clk 0:06:16.2]} 22. Rfd1
{[%clk 0:07:55.6]} 22... Be7 {[%clk 0:06:13.1]} 23. Bb2 {[%clk 0:07:49]} 23...
b5 {[%clk 0:05:58.7]} 24. Nd4 {[%clk 0:07:42.7]} 24... Bf8 {[%clk 0:05:21.7]}
25. Nf5 {[%clk 0:06:59]} 25... Ne4 {[%clk 0:05:20.3]} 26. Bxe4 {[%clk
0:06:46.6]} 26... Rxe4 {[%clk 0:05:19.5]} 27. Nd6 {[%clk 0:06:47.2]} 27... Bxd6
{[%clk 0:05:17.4]} 28. Rxd6 {[%clk 0:06:49.1]} 28... Re6 {[%clk 0:05:08.6]} 29.
Rd7 {[%clk 0:06:38]} 29... a5 {[%clk 0:04:55.5]} 30. Rb7 {[%clk 0:06:32.7]}
30... Rec6 {[%clk 0:04:50.9]} 31. h3 {[%clk 0:06:08.3]} 31... R6c7 {[%clk
0:04:48.5]} 32. Rxc7 {[%clk 0:05:56.7]} 32... Rxc7 {[%clk 0:04:50.4]} 33. Rd1
{[%clk 0:05:58]} 33... Be6 {[%clk 0:04:41.9]} 34. Rd8+ {[%clk 0:05:54.9]} 34...
Kh7 {[%clk 0:04:42.3]} 35. Rb8 {[%clk 0:05:50.6]} 35... Bc4 {[%clk 0:03:54.4]}
36. Bc3 {[%clk 0:05:48.8]} 36... a4 {[%clk 0:03:50.9]} 37. Rh8+ {[%clk
0:05:39.2]} 37... Kg6 {[%clk 0:03:51.4]} 38. Rg8+ {[%clk 0:05:36.8]} 38... Kf5
{[%clk 0:03:52.3]} 39. f3 {[%clk 0:05:28.1]} 39... f6 {[%clk 0:03:27.9]} 40. g4+
{[%clk 0:05:14.5]} 40... Ke6 {[%clk 0:03:28.7]} 41. Rg6 {[%clk 0:05:13.2]} 41...
Be2 {[%clk 0:02:31.7]} 42. Bd4 {[%clk 0:05:07.3]} 42... b4 {[%clk 0:02:23.2]}
43. Rxf6+ {[%clk 0:05:03]} 43... Ke7 {[%clk 0:02:23.8]} 44. axb4 {[%clk
0:04:59.6]} 44... a3 {[%clk 0:02:25.1]} 45. Rxh6 {[%clk 0:04:59.4]} 45... Rc2
{[%clk 0:01:53.5]} 46. Rh7+ {[%clk 0:04:30]} 46... Ke6 {[%clk 0:01:54.1]} 47. f4
{[%clk 0:04:23]} 47... gxf4 {[%clk 0:01:51.5]} 48. exf4 {[%clk 0:04:23.2]} 48...
a2 {[%clk 0:01:52.4]} 49. Ra7 {[%clk 0:04:16.5]} 49... Kd5 {[%clk 0:01:52.9]}
50. Be5 {[%clk 0:04:14.1]} 50... Ke4 {[%clk 0:01:53]} 51. g5 {[%clk 0:04:09]}
51... Ke3 {[%clk 0:01:17.7]} 52. Ra3+ {[%clk 0:04:01.7]} 52... Bd3 {[%clk
0:01:18.1]} 53. g6 {[%clk 0:03:56.7]} 53... Ke2 {[%clk 0:00:19.9]} 54. g7 {[%clk
0:03:45.7]} 54... Bc4 {[%clk 0:00:18.8]} 55. Kg2 {[%clk 0:03:28.7]} 55... Bd5+
{[%clk 0:00:12.6]} 56. Kg3 {[%clk 0:03:26.9]} 56... Kf1 {[%clk 0:00:14.1]} 57.
Kh4 {[%clk 0:03:21]} 57... Rg2 {[%clk 0:00:14.7]} 58. b5 {[%clk 0:03:14.4]}
58... Rg6 {[%clk 0:00:06.9]} 59. Ra6 {[%clk 0:03:05]} 1-0

[Event "GrandPrix_30.05"]
[Site "Chess.com"]
[Date "2020.05.30"]
[Round "4"]
[White "rim1618"]
[Black "LuckyLuka04"]
[Result "1-0"]
[WhiteElo "2390"]
[BlackElo "2164"]
[TimeControl "600+2"]
[EndTime "9:53:15 PDT"]
[Termination "rim1618 won on time"]

1. c4 {[%clk 0:10:01.9]} 1... Nf6 {[%clk 0:09:59.5]} 2. g3 {[%clk 0:10:00]} 2...
c5 {[%clk 0:09:57.8]} 3. Bg2 {[%clk 0:10:01.1]} 3... e6 {[%clk 0:09:59.4]} 4.
Nf3 {[%clk 0:10:02]} 4... Nc6 {[%clk 0:09:56.1]} 5. d4 {[%clk 0:10:01.8]} 5...
cxd4 {[%clk 0:09:48.2]} 6. Nxd4 {[%clk 0:10:03.7]} 6... Qb6 {[%clk 0:09:32.1]}
7. Nb5 {[%clk 0:09:43.7]} 7... Bc5 {[%clk 0:08:19.5]} 8. O-O {[%clk 0:09:31.1]}
8... a6 {[%clk 0:08:02]} 9. N5c3 {[%clk 0:09:04.7]} 9... Qc7 {[%clk 0:07:53]}
10. Bf4 {[%clk 0:09:03.5]} 10... d6 {[%clk 0:07:13.3]} 11. Nd2 {[%clk 0:09:01]}
11... Nh5 {[%clk 0:06:42.9]} 12. e3 {[%clk 0:08:42.5]} 12... Nxf4 {[%clk
0:06:40.3]} 13. exf4 {[%clk 0:08:44.4]} 13... O-O {[%clk 0:06:31.4]} 14. Nb3
{[%clk 0:08:42.3]} 14... Ba7 {[%clk 0:06:05]} 15. Rc1 {[%clk 0:08:42.4]} 15...
Bd7 {[%clk 0:05:44.2]} 16. Ne4 {[%clk 0:08:39.3]} 16... Bb8 {[%clk 0:05:37.9]}
17. Qh5 {[%clk 0:08:36.2]} 17... Ne7 {[%clk 0:04:37.4]} 18. Rfd1 {[%clk
0:08:24.8]} 18... Bc6 {[%clk 0:04:36.3]} 19. Nxd6 {[%clk 0:08:10]} 19... Ba7
{[%clk 0:03:30.3]} 20. Bxc6 {[%clk 0:07:52.7]} 20... Nxc6 {[%clk 0:03:21.3]} 21.
Ne4 {[%clk 0:07:49.5]} 21... Rad8 {[%clk 0:03:13.9]} 22. c5 {[%clk 0:07:24.5]}
22... Nb4 {[%clk 0:02:31.7]} 23. a3 {[%clk 0:07:08.4]} 23... Nd3 {[%clk
0:02:05.7]} 24. Rc2 {[%clk 0:07:08.7]} 24... Qc6 {[%clk 0:01:03]} 25. Nd6 {[%clk
0:06:10.4]} 25... Rxd6 {[%clk 0:00:39.6]} 26. Qe2 {[%clk 0:03:55.8]} 26... Nxf4
{[%clk 0:00:40.1]} 27. gxf4 {[%clk 0:03:54]} 27... Rxd1+ {[%clk 0:00:42]} 28.
Qxd1 {[%clk 0:03:55.4]} 28... Bb8 {[%clk 0:00:40.1]} 29. Rc4 {[%clk 0:03:43.4]}
29... Bc7 {[%clk 0:00:41.1]} 30. Qd3 {[%clk 0:03:35.1]} 30... Rd8 {[%clk
0:00:40.6]} 31. Qe4 {[%clk 0:03:36.4]} 31... Qb5 {[%clk 0:00:28.6]} 32. Qc2
{[%clk 0:03:30.3]} 32... Qc6 {[%clk 0:00:21]} 33. Nd4 {[%clk 0:03:16.3]} 33...
Qd5 {[%clk 0:00:21.3]} 34. Ne2 {[%clk 0:03:12.6]} 34... Qf3 {[%clk 0:00:14.1]}
35. Rc3 {[%clk 0:03:09.8]} 35... Qg4+ {[%clk 0:00:13.4]} 36. Rg3 {[%clk
0:03:10.8]} 36... Qh4 {[%clk 0:00:12.8]} 37. Qe4 {[%clk 0:03:07.6]} 37... Rb8
{[%clk 0:00:07]} 38. Kg2 {[%clk 0:03:01.2]} 38... Qf6 {[%clk 0:00:06.7]} 39. b4
{[%clk 0:02:58.8]} 39... b6 {[%clk 0:00:05.4]} 40. c6 {[%clk 0:02:58.6]} 40...
Rd8 {[%clk 0:00:06.8]} 41. Rd3 {[%clk 0:02:56.2]} 41... Rxd3 {[%clk 0:00:06.5]}
42. Qxd3 {[%clk 0:02:58.1]} 42... g5 {[%clk 0:00:05.2]} 43. Qd7 {[%clk 0:02:55]}
43... Qd8 {[%clk 0:00:05.7]} 44. Qxd8+ {[%clk 0:02:26.6]} 44... Bxd8 {[%clk
0:00:07.6]} 45. fxg5 {[%clk 0:02:28.2]} 45... Kf8 {[%clk 0:00:08.7]} 46. Nc3
{[%clk 0:02:29.2]} 46... Ke7 {[%clk 0:00:09.2]} 47. Ne4 {[%clk 0:02:30.4]} 47...
e5 {[%clk 0:00:05.4]} 48. Kf3 {[%clk 0:02:20.1]} 48... Ke6 {[%clk 0:00:06.6]}
49. Kg4 {[%clk 0:02:21.3]} 49... Kd5 {[%clk 0:00:07.4]} 50. Nf6+ {[%clk
0:02:22.7]} 50... Bxf6 {[%clk 0:00:07.6]} 51. c7 {[%clk 0:02:22.4]} 1-0

[Event "GrandPrix_30.05"]
[Site "Chess.com"]
[Date "2020.05.30"]
[Round "4"]
[White "Shahinyan_ChessMood"]
[Black "DaggiGretarsson"]
[Result "1/2-1/2"]
[WhiteElo "2398"]
[BlackElo "2166"]
[TimeControl "600+2"]
[EndTime "9:53:17 PDT"]
[Termination "Game drawn by repetition"]

1. e4 {[%clk 0:10:01.9]} 1... g6 {[%clk 0:09:57.8]} 2. d4 {[%clk 0:09:59.9]}
2... Bg7 {[%clk 0:09:58.7]} 3. Nc3 {[%clk 0:10:01.5]} 3... d6 {[%clk 0:09:59.4]}
4. Be3 {[%clk 0:10:00.1]} 4... a6 {[%clk 0:09:59.9]} 5. a4 {[%clk 0:09:58.3]}
5... b6 {[%clk 0:09:59.6]} 6. g3 {[%clk 0:09:57.1]} 6... Bb7 {[%clk 0:09:51.8]}
7. Bg2 {[%clk 0:09:58]} 7... Nd7 {[%clk 0:09:52.5]} 8. Nge2 {[%clk 0:09:56.8]}
8... Rb8 {[%clk 0:09:52.7]} 9. O-O {[%clk 0:09:56]} 9... Ngf6 {[%clk 0:09:53]}
10. h3 {[%clk 0:09:56.6]} 10... b5 {[%clk 0:09:05.8]} 11. axb5 {[%clk
0:09:45.9]} 11... axb5 {[%clk 0:09:06.3]} 12. d5 {[%clk 0:09:38.1]} 12... b4
{[%clk 0:08:55.8]} 13. Na4 {[%clk 0:09:35.1]} 13... c5 {[%clk 0:08:37.4]} 14. f4
{[%clk 0:09:09.4]} 14... O-O {[%clk 0:08:28.4]} 15. g4 {[%clk 0:08:50.5]} 15...
Ba6 {[%clk 0:07:56.3]} 16. Rf2 {[%clk 0:08:29.6]} 16... Ne8 {[%clk 0:06:06.3]}
17. Ng3 {[%clk 0:07:29.9]} 17... Bb5 {[%clk 0:05:50.1]} 18. e5 {[%clk
0:07:03.5]} 18... dxe5 {[%clk 0:05:20]} 19. Nxc5 {[%clk 0:06:59.1]} 19... exf4
{[%clk 0:05:12.4]} 20. Rxf4 {[%clk 0:06:54.4]} 20... Nxc5 {[%clk 0:04:36.4]} 21.
Bxc5 {[%clk 0:06:56.3]} 21... Qc7 {[%clk 0:04:36.9]} 22. Be3 {[%clk 0:06:40]}
22... Be5 {[%clk 0:04:30.5]} 23. Ra7 {[%clk 0:05:59]} 23... Bxf4 {[%clk
0:04:28.1]} 24. Rxc7 {[%clk 0:05:56.8]} 24... Bxe3+ {[%clk 0:04:29.2]} 25. Kh1
{[%clk 0:05:22.5]} 25... Nxc7 {[%clk 0:04:27.9]} 26. Qe1 {[%clk 0:05:21.7]}
26... Bf4 {[%clk 0:04:01]} 27. Qf2 {[%clk 0:05:12.2]} 27... Bd6 {[%clk
0:03:39.4]} 28. Ne4 {[%clk 0:05:10.8]} 28... Ne8 {[%clk 0:03:34.7]} 29. Qa7
{[%clk 0:04:52.6]} 29... Nf6 {[%clk 0:02:45.7]} 30. Nxd6 {[%clk 0:04:38.4]}
30... exd6 {[%clk 0:02:46.1]} 31. Qe7 {[%clk 0:04:40.3]} 31... Nd7 {[%clk
0:01:31.9]} 32. Qxd6 {[%clk 0:04:37.8]} 32... Rfe8 {[%clk 0:01:24.7]} 33. Qxb4
{[%clk 0:04:04.2]} 33... Re2 {[%clk 0:00:40.2]} 34. c4 {[%clk 0:02:58.1]} 34...
Ba6 {[%clk 0:00:16.5]} 35. Qd6 {[%clk 0:02:20.7]} 35... Rbxb2 {[%clk 0:00:03.9]}
36. Qxd7 {[%clk 0:02:01.2]} 36... Rxg2 {[%clk 0:00:04.7]} 37. Qe8+ {[%clk
0:02:01.7]} 37... Kg7 {[%clk 0:00:05.4]} 38. Qe5+ {[%clk 0:02:02.7]} 38... Kg8
{[%clk 0:00:06.2]} 39. Qe8+ {[%clk 0:02:03.4]} 39... Kg7 {[%clk 0:00:07.6]} 40.
Qe5+ {[%clk 0:01:58.3]} 40... f6 {[%clk 0:00:08.2]} 41. Qc7+ {[%clk 0:01:42.6]}
41... Kh6 {[%clk 0:00:08.4]} 42. Qf4+ {[%clk 0:01:44.1]} 42... Kg7 {[%clk
0:00:09.4]} 43. Qc7+ {[%clk 0:01:45]} 43... Kh6 {[%clk 0:00:10.2]} 44. Qf4+
{[%clk 0:01:44.5]} 44... Kg7 {[%clk 0:00:11.3]} 45. Qc7+ {[%clk 0:01:43.2]}
1/2-1/2

[Event "GrandPrix_30.05"]
[Site "Chess.com"]
[Date "2020.05.30"]
[Round "4"]
[White "OK97"]
[Black "Kostya_Nikologorskiy"]
[Result "0-1"]
[WhiteElo "2260"]
[BlackElo "2215"]
[TimeControl "600+2"]
[EndTime "9:53:21 PDT"]
[Termination "Kostya_Nikologorskiy won on time"]

1. e4 {[%clk 0:10:01.9]} 1... e6 {[%clk 0:09:54.8]} 2. d4 {[%clk 0:10:02.2]}
2... d5 {[%clk 0:09:55.9]} 3. Nc3 {[%clk 0:10:03.5]} 3... Bb4 {[%clk 0:09:56.4]}
4. e5 {[%clk 0:10:04.1]} 4... c5 {[%clk 0:09:57.3]} 5. a3 {[%clk 0:10:05]} 5...
Bxc3+ {[%clk 0:09:57.7]} 6. bxc3 {[%clk 0:10:06.9]} 6... Ne7 {[%clk 0:09:59.2]}
7. Qg4 {[%clk 0:10:05.6]} 7... Qc7 {[%clk 0:09:57.7]} 8. Qxg7 {[%clk 0:10:04.1]}
8... Rg8 {[%clk 0:09:58.9]} 9. Qxh7 {[%clk 0:10:05.4]} 9... cxd4 {[%clk
0:10:00.1]} 10. Qd3 {[%clk 0:10:05.5]} 10... dxc3 {[%clk 0:09:14.3]} 11. Nf3
{[%clk 0:10:05.4]} 11... Nbc6 {[%clk 0:09:12.1]} 12. Qxc3 {[%clk 0:10:03.5]}
12... Bd7 {[%clk 0:09:03.8]} 13. h4 {[%clk 0:09:25]} 13... d4 {[%clk 0:08:43.4]}
14. Nxd4 {[%clk 0:08:30.9]} 14... Qxe5+ {[%clk 0:08:43.4]} 15. Ne2 {[%clk
0:08:30.1]} 15... Qxc3+ {[%clk 0:07:41.3]} 16. Nxc3 {[%clk 0:08:29.6]} 16... Nd4
{[%clk 0:07:43.2]} 17. Kd1 {[%clk 0:07:00.1]} 17... Bc6 {[%clk 0:07:26.3]} 18.
Bg5 {[%clk 0:06:45]} 18... Rd8 {[%clk 0:06:23.6]} 19. Kc1 {[%clk 0:06:42.9]}
19... f6 {[%clk 0:05:16]} 20. Bxf6 {[%clk 0:06:29.2]} 20... Bxg2 {[%clk
0:05:12]} 21. Bxg2 {[%clk 0:03:49.6]} 21... Rxg2 {[%clk 0:05:12.8]} 22. Rd1
{[%clk 0:03:50.8]} 22... Ndf5 {[%clk 0:04:46.8]} 23. Rxd8+ {[%clk 0:03:48]}
23... Kxd8 {[%clk 0:04:48.7]} 24. Ne4 {[%clk 0:03:40.6]} 24... Kc7 {[%clk
0:03:31.5]} 25. Kb2 {[%clk 0:02:22.4]} 25... Nd5 {[%clk 0:03:17.9]} 26. Be5+
{[%clk 0:02:06.5]} 26... Kc6 {[%clk 0:03:19]} 27. h5 {[%clk 0:01:51.1]} 27...
Rg4 {[%clk 0:03:06.5]} 28. Re1 {[%clk 0:01:44.4]} 28... Rh4 {[%clk 0:02:58.3]}
29. Ng5 {[%clk 0:00:41.3]} 29... Nb6 {[%clk 0:02:23.2]} 30. Bb8 {[%clk 0:00:19]}
30... e5 {[%clk 0:02:13.1]} 31. Bxe5 {[%clk 0:00:15.1]} 31... Rxh5 {[%clk
0:02:09.1]} 32. Bf4 {[%clk 0:00:09.9]} 32... Nd4 {[%clk 0:01:37.2]} 33. Ne4
{[%clk 0:00:06.7]} 33... Rb5+ {[%clk 0:01:21.9]} 34. Kc1 {[%clk 0:00:07.7]}
34... Nc4 {[%clk 0:01:21.4]} 35. a4 {[%clk 0:00:04.4]} 35... Rb2 {[%clk
0:01:22.3]} 36. Nf6 {[%clk 0:00:02.8]} 36... Rxc2+ {[%clk 0:01:20.8]} 37. Kb1
{[%clk 0:00:04.4]} 37... Na3+ {[%clk 0:01:20.8]} 0-1

[Event "GrandPrix_30.05"]
[Site "Chess.com"]
[Date "2020.05.30"]
[Round "4"]
[White "Nuvas"]
[Black "BairaKovanova"]
[Result "1-0"]
[WhiteElo "2254"]
[BlackElo "2104"]
[TimeControl "600+2"]
[EndTime "9:53:21 PDT"]
[Termination "Nuvas won by resignation"]

1. d4 {[%clk 0:10:01.9]} 1... Nf6 {[%clk 0:09:59]} 2. c4 {[%clk 0:10:02.6]} 2...
e6 {[%clk 0:10:00.2]} 3. Nc3 {[%clk 0:10:04.2]} 3... Bb4 {[%clk 0:10:00.1]} 4.
g3 {[%clk 0:10:05.5]} 4... O-O {[%clk 0:09:27.4]} 5. Bg2 {[%clk 0:10:06.3]} 5...
d5 {[%clk 0:09:27.9]} 6. Nf3 {[%clk 0:10:07.2]} 6... Ne4 {[%clk 0:09:01.1]} 7.
Bd2 {[%clk 0:10:08]} 7... Nxd2 {[%clk 0:08:59.2]} 8. Qxd2 {[%clk 0:09:56.9]}
8... dxc4 {[%clk 0:08:52.1]} 9. O-O {[%clk 0:09:56.3]} 9... Nc6 {[%clk
0:08:48.6]} 10. Rfd1 {[%clk 0:09:37.6]} 10... Qe7 {[%clk 0:08:37.1]} 11. Qc2
{[%clk 0:09:26.8]} 11... Bd7 {[%clk 0:08:08.3]} 12. d5 {[%clk 0:05:57.1]} 12...
Nd8 {[%clk 0:07:27.6]} 13. dxe6 {[%clk 0:05:17.2]} 13... Bxe6 {[%clk 0:07:14.7]}
14. Nd4 {[%clk 0:05:11.7]} 14... c6 {[%clk 0:06:26.4]} 15. Rac1 {[%clk 0:04:06]}
15... h6 {[%clk 0:05:27.1]} 16. Kh1 {[%clk 0:03:23.9]} 16... Bxc3 {[%clk
0:04:31.6]} 17. Qxc3 {[%clk 0:03:18.9]} 17... Bd5 {[%clk 0:04:32.6]} 18. Bxd5
{[%clk 0:03:05.3]} 18... cxd5 {[%clk 0:04:33.1]} 19. Qf3 {[%clk 0:03:06.7]}
19... Qe5 {[%clk 0:03:43.2]} 20. Nf5 {[%clk 0:02:45.1]} 20... Nc6 {[%clk
0:03:18.8]} 21. Qxd5 {[%clk 0:02:41.9]} 21... Qxe2 {[%clk 0:03:01.2]} 22. Rd2
{[%clk 0:02:34.6]} 22... Qe6 {[%clk 0:00:49.9]} 23. Qxe6 {[%clk 0:01:24.2]}
23... fxe6 {[%clk 0:00:48.9]} 24. Nd6 {[%clk 0:01:25.6]} 24... Rad8 {[%clk
0:00:38.2]} 25. Rcd1 {[%clk 0:01:25.3]} 25... Ne5 {[%clk 0:00:35.8]} 26. Kg2
{[%clk 0:01:12.5]} 26... b6 {[%clk 0:00:24.7]} 27. f4 {[%clk 0:00:56.2]} 27...
Ng4 {[%clk 0:00:17.8]} 28. Nxc4 {[%clk 0:00:54.2]} 28... Rc8 {[%clk 0:00:18.7]}
29. h3 {[%clk 0:00:49.5]} 29... Rxc4 {[%clk 0:00:18.9]} 30. hxg4 {[%clk
0:00:50.8]} 30... Rfc8 {[%clk 0:00:18.3]} 31. Re1 {[%clk 0:00:41]} 31... Rc2
{[%clk 0:00:17.8]} 32. Ree2 {[%clk 0:00:42.4]} 32... Kf7 {[%clk 0:00:17]} 33.
Rxc2 {[%clk 0:00:43.1]} 1-0

[Event "GrandPrix_30.05"]
[Site "Chess.com"]
[Date "2020.05.30"]
[Round "4"]
[White "Guenplen"]
[Black "arminmusovic"]
[Result "1-0"]
[WhiteElo "2532"]
[BlackElo "2273"]
[TimeControl "600+2"]
[EndTime "9:53:26 PDT"]
[Termination "Guenplen won by checkmate"]

1. d4 {[%clk 0:10:01.9]} 1... d5 {[%clk 0:10:00.2]} 2. Bf4 {[%clk 0:10:02]} 2...
c5 {[%clk 0:10:02.1]} 3. e3 {[%clk 0:10:02.9]} 3... Nc6 {[%clk 0:10:02.9]} 4. c3
{[%clk 0:10:02.8]} 4... a6 {[%clk 0:10:01.7]} 5. Nd2 {[%clk 0:09:56.1]} 5... Nf6
{[%clk 0:09:57]} 6. Bd3 {[%clk 0:09:50.6]} 6... cxd4 {[%clk 0:09:40.6]} 7. exd4
{[%clk 0:09:50]} 7... Bg4 {[%clk 0:09:38.2]} 8. Ngf3 {[%clk 0:09:36.3]} 8... e6
{[%clk 0:09:35.7]} 9. h3 {[%clk 0:09:33]} 9... Bh5 {[%clk 0:09:34.2]} 10. Qb3
{[%clk 0:09:10]} 10... Na5 {[%clk 0:08:35.2]} 11. Qc2 {[%clk 0:09:10.7]} 11...
Bd6 {[%clk 0:08:33.2]} 12. Bxd6 {[%clk 0:09:08.1]} 12... Qxd6 {[%clk 0:08:34]}
13. Ne5 {[%clk 0:09:07.9]} 13... Nc6 {[%clk 0:08:24.6]} 14. f4 {[%clk 0:09:01]}
14... Bg6 {[%clk 0:08:19.9]} 15. O-O {[%clk 0:08:53.1]} 15... O-O {[%clk
0:08:21.1]} 16. Rae1 {[%clk 0:08:36.3]} 16... Rac8 {[%clk 0:08:17.6]} 17. Qb1
{[%clk 0:08:25.1]} 17... Nd7 {[%clk 0:07:37.2]} 18. Nxd7 {[%clk 0:07:51.9]}
18... Qxd7 {[%clk 0:07:26.8]} 19. f5 {[%clk 0:07:49.6]} 19... exf5 {[%clk
0:07:25.4]} 20. Bxf5 {[%clk 0:07:51.5]} 20... Qc7 {[%clk 0:07:15.7]} 21. Qd1
{[%clk 0:07:36.3]} 21... Rce8 {[%clk 0:07:01.7]} 22. Qf3 {[%clk 0:06:40.7]}
22... Ne7 {[%clk 0:06:01.4]} 23. Bxg6 {[%clk 0:06:28.3]} 23... hxg6 {[%clk
0:05:34.3]} 24. Re5 {[%clk 0:06:11.5]} 24... Qa5 {[%clk 0:04:52]} 25. Rfe1
{[%clk 0:05:39.4]} 25... Qxa2 {[%clk 0:03:44]} 26. Rxe7 {[%clk 0:05:38.3]} 26...
Rxe7 {[%clk 0:03:45.9]} 27. Rxe7 {[%clk 0:05:39.3]} 27... Qxb2 {[%clk 0:03:47]}
28. Nf1 {[%clk 0:05:28.4]} 28... a5 {[%clk 0:03:38]} 29. Qxd5 {[%clk 0:05:25.6]}
29... Qxc3 {[%clk 0:03:34.4]} 30. Rxb7 {[%clk 0:05:03.8]} 30... a4 {[%clk
0:03:28.4]} 31. Ra7 {[%clk 0:04:44.7]} 31... a3 {[%clk 0:03:04]} 32. Qd6 {[%clk
0:04:31.3]} 32... Re8 {[%clk 0:02:08.3]} 33. Rxa3 {[%clk 0:04:17.7]} 33... Qb2
{[%clk 0:01:52]} 34. Re3 {[%clk 0:04:03]} 34... Ra8 {[%clk 0:01:30.3]} 35. Qd5
{[%clk 0:03:57.7]} 35... Qa1 {[%clk 0:01:16.7]} 36. Re7 {[%clk 0:03:40.6]} 36...
Rf8 {[%clk 0:01:09.8]} 37. Rd7 {[%clk 0:03:34.3]} 37... Kh7 {[%clk 0:01:05.4]}
38. Rd8 {[%clk 0:03:21.9]} 38... Rxd8 {[%clk 0:01:02.9]} 39. Qxd8 {[%clk
0:03:23.8]} 39... Qd1 {[%clk 0:01:00]} 40. Qh4+ {[%clk 0:03:12]} 40... Kg8
{[%clk 0:01:01.3]} 41. Qe4 {[%clk 0:03:11.6]} 41... f5 {[%clk 0:00:56.3]} 42.
Qe5 {[%clk 0:03:06]} 42... Kh7 {[%clk 0:00:47.1]} 43. d5 {[%clk 0:03:01.6]}
43... f4 {[%clk 0:00:41.9]} 44. Qe4 {[%clk 0:02:58.9]} 44... Kh8 {[%clk
0:00:26.2]} 45. Qxf4 {[%clk 0:02:24.9]} 45... Qxd5 {[%clk 0:00:25.3]} 46. Kh2
{[%clk 0:02:19]} 46... Kh7 {[%clk 0:00:22.3]} 47. Ne3 {[%clk 0:02:17.4]} 47...
Qh5 {[%clk 0:00:18.1]} 48. Ng4 {[%clk 0:02:11.7]} 48... Qd5 {[%clk 0:00:14.3]}
49. Ne5 {[%clk 0:02:10]} 49... Qe6 {[%clk 0:00:13.1]} 50. Nf3 {[%clk 0:02:04.8]}
50... Qa6 {[%clk 0:00:11.2]} 51. Ng5+ {[%clk 0:02:02.1]} 51... Kh6 {[%clk
0:00:11.3]} 52. Qh4# {[%clk 0:02:02.5]} 1-0

[Event "GrandPrix_30.05"]
[Site "Chess.com"]
[Date "2020.05.30"]
[Round "4"]
[White "vagpat"]
[Black "chansen64"]
[Result "1-0"]
[WhiteElo "2214"]
[BlackElo "2047"]
[TimeControl "600+2"]
[EndTime "9:53:33 PDT"]
[Termination "vagpat won by resignation"]

1. e4 {[%clk 0:10:01.9]} 1... c5 {[%clk 0:09:59.4]} 2. Nf3 {[%clk 0:10:02.4]}
2... Nc6 {[%clk 0:09:59.3]} 3. d4 {[%clk 0:10:03.6]} 3... cxd4 {[%clk
0:09:59.6]} 4. Nxd4 {[%clk 0:10:05.5]} 4... g6 {[%clk 0:10:00.6]} 5. c4 {[%clk
0:10:05.7]} 5... Nf6 {[%clk 0:09:59]} 6. Nc3 {[%clk 0:10:06.3]} 6... d6 {[%clk
0:09:59.6]} 7. Be2 {[%clk 0:10:03.1]} 7... Nxd4 {[%clk 0:09:59.6]} 8. Qxd4
{[%clk 0:10:04.3]} 8... Bg7 {[%clk 0:10:00.6]} 9. Be3 {[%clk 0:10:05.8]} 9...
O-O {[%clk 0:10:01]} 10. Qd2 {[%clk 0:10:06.5]} 10... a6 {[%clk 0:10:01.3]} 11.
f3 {[%clk 0:10:05.3]} 11... Be6 {[%clk 0:10:01.8]} 12. Rc1 {[%clk 0:10:01.3]}
12... Qa5 {[%clk 0:09:57.9]} 13. b3 {[%clk 0:09:35.1]} 13... Rfc8 {[%clk
0:09:55.4]} 14. Na4 {[%clk 0:09:33.6]} 14... Qxd2+ {[%clk 0:09:51.8]} 15. Kxd2
{[%clk 0:09:35.5]} 15... Nd7 {[%clk 0:09:51.9]} 16. g4 {[%clk 0:09:20.7]} 16...
f5 {[%clk 0:09:43.6]} 17. gxf5 {[%clk 0:08:59.1]} 17... gxf5 {[%clk 0:09:44]}
18. Rhg1 {[%clk 0:09:00.2]} 18... Kf7 {[%clk 0:09:38.8]} 19. Bd3 {[%clk
0:08:33.4]} 19... fxe4 {[%clk 0:07:50.9]} 20. Bxe4 {[%clk 0:08:32.5]} 20... Rc7
{[%clk 0:07:36.1]} 21. Ke2 {[%clk 0:07:28.9]} 21... Nf6 {[%clk 0:07:12.6]} 22.
Bd3 {[%clk 0:07:08.4]} 22... Rac8 {[%clk 0:06:32.5]} 23. Nb6 {[%clk 0:06:38.6]}
23... Rg8 {[%clk 0:06:07.9]} 24. Bd4 {[%clk 0:05:59.8]} 24... Rh8 {[%clk
0:03:52.4]} 25. h4 {[%clk 0:05:03.5]} 25... Bh6 {[%clk 0:03:39.2]} 26. Be3
{[%clk 0:04:52.6]} 26... Bxe3 {[%clk 0:03:38.7]} 27. Kxe3 {[%clk 0:04:54.5]}
27... Rc5 {[%clk 0:03:29.8]} 28. Rg5 {[%clk 0:04:43.3]} 28... Rc6 {[%clk
0:02:51.7]} 29. Na4 {[%clk 0:04:13.6]} 29... b5 {[%clk 0:02:52]} 30. Nb2 {[%clk
0:04:06.9]} 30... b4 {[%clk 0:02:29]} 31. Rcg1 {[%clk 0:04:01.2]} 31... h6
{[%clk 0:02:15.2]} 32. Rg7+ {[%clk 0:03:57.9]} 32... Ke8 {[%clk 0:02:13.4]} 33.
Na4 {[%clk 0:03:47.7]} 33... Kd8 {[%clk 0:02:02.9]} 34. f4 {[%clk 0:03:13.2]}
34... h5 {[%clk 0:01:46.5]} 35. f5 {[%clk 0:03:11.5]} 35... Bd7 {[%clk
0:01:40.3]} 36. Kd4 {[%clk 0:02:54.2]} 36... Be8 {[%clk 0:01:27]} 37. c5 {[%clk
0:02:32.3]} 37... dxc5+ {[%clk 0:01:22.4]} 38. Nxc5 {[%clk 0:02:34.2]} 38...
Rd6+ {[%clk 0:01:23.2]} 39. Ke3 {[%clk 0:02:33.1]} 39... Nd5+ {[%clk 0:01:07.6]}
40. Kf2 {[%clk 0:02:21]} 40... Nf4 {[%clk 0:01:00.4]} 41. Nb7+ {[%clk
0:02:17.9]} 41... Kc7 {[%clk 0:00:55]} 42. Nxd6 {[%clk 0:02:18.3]} 42... Kxd6
{[%clk 0:00:48.7]} 43. Ke3 {[%clk 0:02:11.9]} 43... Nxd3 {[%clk 0:00:45.8]} 44.
Kxd3 {[%clk 0:02:12.2]} 44... Rf8 {[%clk 0:00:46]} 45. R1g5 {[%clk 0:02:04.5]}
45... Bf7 {[%clk 0:00:43]} 46. Ke4 {[%clk 0:01:42.9]} 46... Bd5+ {[%clk
0:00:42.8]} 47. Ke3 {[%clk 0:01:34.3]} 47... Bf7 {[%clk 0:00:43.2]} 48. Rh7
{[%clk 0:01:25.5]} 48... Ke5 {[%clk 0:00:39]} 49. f6+ {[%clk 0:01:22.3]} 49...
Kxf6 {[%clk 0:00:36.1]} 50. Rh6+ {[%clk 0:01:22.3]} 1-0